bitfinex/quotes_ETHUSD_20251107
["timestamp","ask_amount","ask_price","bid_price","bid_amount"]
[1762484401785,0.2555,3349.1,3348.5,0.001]
[1762484402109,0.2555,3349.1,3348.6,2.98623845]
[1762484402268,0.45880001,3349.3,3348.5,0.001]
[1762484402269,0.6497,3348.6,3348.5,0.001]
[1762484402800,1.1085,3348.6,3348.5,0.1498]
[1762484404367,1e-08,3349.3,3348.5,0.4834]
[1762484404567,0.6517,3348.6,3348.5,0.001]
[1762484405071,0.4588,3349.0,3348.5,0.001]
[1762484405402,0.4588,3349.0,3348.5,2.9874075]
[1762484405602,0.1888,3348.9,3348.5,0.001]
[1762484405799,0.45880001,3349.3,3348.7,2.98617535]
[1762484406099,0.45880001,3349.3,3348.8,2.98607895]
[1762484406712,1e-08,3349.3,3348.9,0.02986055]
[1762484406919,1e-08,3349.3,3348.9,3.01591359]
[1762484407096,1e-08,3349.3,3349.1,2.98584425]
[1762484407413,0.4629,3349.0,3348.5,0.001]
[1762484407625,0.4629,3349.0,3348.6,2.98625225]
[1762484407831,0.1888,3348.9,3348.5,0.001]
[1762484408294,0.1888,3348.9,3348.6,2.98625385]
[1762484408496,0.1888,3348.9,3348.5,0.001]
[1762484408693,0.1888,3348.9,3348.5,0.34029999]
[1762484409025,0.4629,3348.6,3348.5,0.001]
[1762484409318,3.44922264,3348.6,3348.5,0.001]
[1762484409492,0.9217,3348.6,3348.5,0.001]
[1762484409883,1e-08,3349.3,3348.5,0.001]
[1762484410081,0.4588,3349.2,3348.5,0.001]
[1762484410438,0.6517,3348.6,3348.5,0.001]
[1762484410916,0.1888,3348.6,3348.5,0.001]
[1762484411103,0.1835,3348.9,3348.5,0.001]
[1762484411415,0.4531,3348.8,3348.5,0.001]
[1762484411984,0.4531,3348.8,3348.5,2.98739202]
[1762484412190,0.1835,3348.9,3348.5,2.98739202]
[1762484412395,0.4531,3349.1,3348.6,2.98631453]
[1762484413019,0.4984,3348.7,3348.5,0.001]
[1762484413394,0.6843,3348.6,3348.5,0.001]
[1762484413704,3.67062264,3348.6,3348.5,0.001]
[1762484414802,0.6843,3348.6,3348.5,0.001]
[1762484415038,3.67062264,3348.6,3348.5,0.001]
[1762484416839,4.95581459,3348.6,3348.5,0.001]
[1762484417201,2.9865902,3348.3,3348.2,0.001]
[1762484417405,3.4822902,3348.3,3348.2,0.001]
[1762484417606,3.9353902,3348.3,3348.2,0.001]
[1762484419021,0.9488,3348.3,3348.2,0.001]
[1762484419263,3.9353902,3348.3,3348.2,0.001]
[1762484419542,5.1951022,3348.3,3348.2,0.001]
[1762484419707,5.1951022,3348.3,3348.1,0.001]
[1762484419708,2.9866794,3348.2,3348.1,0.001]
[1762484419903,3.69915935,3348.2,3348.1,0.001]
[1762484420108,2.98694704,3347.9,3347.8,0.001]
[1762484420342,3.48004704,3347.9,3347.8,0.001]
[1762484420507,5.19285904,3347.9,3347.8,0.001]
[1762484420710,5.19285904,3347.9,3347.2,0.1488]
[1762484420711,2.98770212,3347.1,3346.5,0.001]
[1762484420910,0.6819,3346.7,3346.5,0.001]
[1762484421142,0.6819,3346.7,3346.5,2.98918187]
[1762484421350,0.6819,3346.7,3346.6,0.1498]
[1762484422261,0.6819,3346.7,3346.6,3.13790733]
[1762484422628,0.1835,3347.1,3346.7,2.98801367]
[1762484422823,0.1488,3347.4,3346.6,0.1498]
[1762484422824,0.1488,3347.4,3346.6,0.001]
[1762484423061,0.1835,3347.6,3347.0,0.1488]
[1762484423260,2.98730476,3347.5,3347.0,0.1786775]
[1762484423466,3.77263517,3347.6,3347.0,0.1786775]
[1762484423669,0.4531,3347.5,3347.0,0.1786775]
[1762484424534,0.4531,3347.5,3347.0,0.1488]
[1762484424535,2.9874743,3347.4,3347.0,0.1488]
[1762484424827,0.4984,3347.1,3347.0,0.1488]
[1762484425365,0.9515,3347.1,3347.0,0.1488]
[1762484425559,0.4531,3347.5,3347.0,0.1488]
[1762484425768,2.98745024,3347.4,3347.0,0.1488]
[1762484425941,2.9874921,3347.3,3347.0,0.1488]
[1762484426332,0.4984,3347.1,3347.0,0.1488]
[1762484426864,3.93916096,3347.1,3347.0,0.1488]
[1762484427083,3.93916096,3347.1,3346.8,0.1488]
[1762484427231,0.4531,3347.0,3346.8,0.1488]
[1762484427433,0.2485,3346.9,3346.6,0.001]
[1762484427631,0.4959,3346.7,3346.6,0.1498]
[1762484427951,3.48391804,3346.7,3346.6,0.1498]
[1762484428151,0.949,3346.7,3346.6,0.1498]
[1762484428362,3.93701804,3346.7,3346.6,0.001]
[1762484428661,0.4984,3346.7,3346.6,0.001]
[1762484429267,0.9515,3346.7,3346.6,0.001]
[1762484429463,0.06141742,3506.3,3346.6,2.98902082]
[1762484429464,1.259712,3347.4,3346.6,2.98902082]
[1762484429765,3.4405479,3347.4,3346.8,2.98791275]
[1762484430536,0.4531,3347.4,3346.9,0.02987839]
[1762484430860,0.4531,3347.4,3346.8,2.98787689]
[1762484431165,3.44057022,3347.4,3346.7,3.01784628]
[1762484431869,3.44057022,3347.4,3346.6,0.001]
[1762484431870,1.259712,3347.2,3346.6,2.98907704]
[1762484432069,4.24736497,3347.2,3346.6,0.001]
[1762484432248,4.70046497,3347.2,3346.6,0.001]
[1762484432453,4.70046497,3347.2,3346.6,2.98909997]
[1762484432764,0.002,3347.8,3347.3,2.98740139]
[1762484433075,0.002,3347.8,3347.5,2.98724035]
[1762484433373,0.002,3347.8,3347.6,0.02987214]
[1762484434064,0.002,3347.8,3347.3,3.48456346]
[1762484434065,0.002,3347.8,3347.5,2.98730336]
[1762484434267,0.002,3347.8,3347.6,0.02987214]
[1762484434573,0.002,3347.8,3347.7,0.4861]
[1762484434863,0.002,3347.8,3347.7,3.47322548]
[1762484435037,0.002,3347.8,3347.7,4.00019673]
[1762484435634,0.002,3347.8,3347.7,3.97032548]
[1762484436282,0.002,3347.8,3347.7,4.40570073]
[1762484436477,0.002,3347.8,3347.7,5.15026513]
[1762484436630,0.002,3347.8,3347.7,5.92413638]
[1762484437042,0.002,3348.2,3348.1,3.39227261]
[1762484437365,0.002,3348.2,3348.1,5.22845498]
[1762484437572,0.002,3348.2,3348.1,5.72555498]
[1762484437897,0.002,3348.2,3348.1,6.97550111]
[1762484438061,0.002,3348.2,3348.1,6.94563343]
[1762484438256,0.002,3348.5,3348.4,2.98650101]
[1762484438559,0.002,3348.5,3348.4,3.84950501]
[1762484438754,0.002,3348.5,3348.4,4.29960501]
[1762484438958,0.002,3348.5,3348.4,5.54579732]
[1762484439161,0.002,3349.7,3348.9,0.405504]
[1762484439388,0.002,3349.7,3349.6,4.65064709]
[1762484439572,0.6465,3351.4,3349.6,6.68137703]
[1762484439887,0.183,3351.5,3350.8,2.98436085]
[1762484440052,0.183,3351.5,3350.9,3.01410818]
[1762484440386,0.183,3351.5,3351.1,0.1488]
[1762484440549,0.183,3351.5,3351.1,3.13289248]
[1762484440746,0.1969,3351.8,3351.2,0.02984005]
[1762484440981,0.1969,3351.8,3351.4,0.1488]
[1762484441180,0.1488,3352.0,3351.5,0.02983738]
[1762484441381,0.1835,3352.2,3351.5,0.02983738]
[1762484441382,0.1835,3352.2,3351.6,0.405504]
[1762484441585,0.1835,3352.2,3351.6,3.38914934]
[1762484441783,0.1835,3352.2,3351.2,0.405504]
[1762484441986,0.1835,3352.2,3351.7,2.98353443]
[1762484442288,0.183,3353.1,3352.1,0.4527]
[1762484442500,0.1969,3353.6,3352.2,0.744]
[1762484442668,2.98266218,3352.8,3352.1,0.1911]
[1762484442861,0.4715,3353.4,3352.0,0.405504]
[1762484443190,0.1969,3352.9,3351.6,0.1911]
[1762484443391,3.17941454,3352.9,3351.6,0.6487]
[1762484443554,0.1969,3352.9,3351.7,0.405504]
[1762484443753,0.1969,3352.9,3351.6,0.1911]
[1762484443954,3.65089477,3352.9,3351.6,0.9351]
[1762484444190,0.6684,3352.9,3351.8,0.405504]
[1762484444415,3.65090363,3352.9,3352.0,2.98322692]
[1762484444616,0.1969,3352.9,3351.8,0.5853244]
[1762484444776,2.98287165,3352.5,3351.6,0.9351]
[1762484444979,0.1969,3353.9,3352.8,0.4527]
[1762484445234,0.1969,3353.9,3352.3,0.317]
[1762484445533,2.9818878,3353.6,3352.4,2.98293687]
[1762484445677,0.4715,3353.8,3352.0,0.4576]
[1762484445876,0.4715,3353.7,3352.1,0.743]
[1762484446106,2.98209615,3353.4,3352.1,0.743]
[1762484446320,0.6788,3352.2,3351.6,0.1911]
[1762484446632,0.6788,3352.2,3350.8,0.46375122]
[1762484446633,3.18002511,3352.2,3351.1,0.1911]
[1762484446816,3.56492573,3351.7,3350.7,0.1119]
[1762484447016,0.5813,3351.7,3350.7,0.8549]
[1762484447227,0.5813,3351.7,3350.9,2.98425745]
[1762484447430,3.45477838,3352.1,3351.1,2.98401852]
[1762484447591,0.4715,3352.1,3351.0,0.4576]
[1762484447797,0.4715,3352.1,3351.2,2.98398455]
[1762484447996,2.98329468,3352.0,3351.1,3.17517998]
[1762484448224,2.98339067,3351.9,3351.1,0.1911]
[1762484448391,0.4715,3352.1,3351.1,0.1911]
[1762484448392,0.4715,3352.1,3351.3,2.98389391]
[1762484448726,0.1969,3352.2,3351.1,0.701517]
[1762484448727,2.98347921,3351.8,3351.1,0.701517]
[1762484448925,0.1969,3352.2,3350.7,0.8549]
[1762484448926,0.4715,3352.0,3350.7,0.8549]
[1762484449230,0.4715,3352.1,3350.7,0.8549]
[1762484449407,3.18035419,3351.9,3351.0,2.98415672]
[1762484449808,0.1969,3352.2,3351.2,2.98400572]
[1762484450047,0.002,3352.9,3351.8,0.4527]
[1762484450048,0.1969,3352.5,3351.8,0.4527]
[1762484450341,2.98259124,3352.8,3351.9,0.405504]
[1762484450342,0.1969,3352.7,3351.9,0.405504]
[1762484450560,0.1969,3352.7,3352.1,2.98319761]
[1762484451127,2.98282158,3352.6,3351.7,0.4576]
[1762484451329,0.6684,3352.7,3352.3,0.1488]
[1762484451698,0.4819,3352.4,3352.3,0.1488]
[1762484451896,3.46483759,3352.4,3352.3,0.1488]
[1762484452114,3.93633759,3352.4,3352.3,0.1488]
[1762484452434,2.98331177,3352.0,3351.2,2.98400404]
[1762484453033,0.6684,3351.9,3351.5,0.1488]
[1762484453233,3.65179736,3351.9,3351.5,0.1488]
[1762484453408,0.4715,3351.8,3351.5,0.1488]
[1762484454003,0.1969,3351.9,3351.5,0.1488]
[1762484454400,0.1969,3352.7,3351.8,0.4527]
[1762484454642,0.1969,3352.7,3351.9,3.01319689]
[1762484454931,0.1969,3352.7,3352.4,0.1488]
[1762484455347,0.1969,3352.7,3351.7,0.405504]
[1762484455649,0.4715,3352.6,3352.5,0.1488]
[1762484455854,0.4715,3352.6,3351.1,0.1911]
[1762484456145,0.4715,3352.6,3351.5,0.1488]
[1762484456146,0.6788,3351.7,3351.5,0.1488]
[1762484456344,3.66237684,3351.7,3351.5,0.1488]
[1762484456550,0.2953,3351.6,3351.5,0.1488]
[1762484456865,0.1989,3352.9,3351.6,0.6438]
[1762484457014,0.1989,3352.9,3351.8,0.4527]
[1762484457464,0.002,3352.9,3351.9,0.405504]
[1762484457758,0.002,3352.9,3352.6,2.98274356]
[1762484457965,0.002,3352.9,3352.6,2.98269436]
[1762484458129,0.002,3352.9,3352.7,2.98266423]
[1762484458322,0.002,3352.9,3352.6,0.4576]
[1762484458515,0.002,3352.9,3351.9,0.4576]
[1762484458853,0.002,3352.9,3352.3,2.98298868]
[1762484459146,0.002,3352.9,3352.5,2.98283644]
[1762484459346,0.002,3352.9,3352.4,2.98291443]
[1762484459571,0.002,3352.9,3352.2,2.98311556]
[1762484459717,0.002,3352.9,3352.3,0.4576]
[1762484459922,0.002,3352.9,3352.5,2.98277129]
[1762484460352,0.002,3352.9,3352.6,0.02982759]
[1762484460553,0.002,3352.9,3352.4,3.14343777]
[1762484460761,0.002,3352.9,3352.5,0.4576]
[1762484460919,0.002,3352.9,3352.5,0.02982848]
[1762484461253,0.002,3352.9,3352.6,0.02982759]
[1762484461453,0.002,3352.9,3352.8,3.43528172]
[1762484461655,0.002,3352.9,3352.8,1.09450189]
[1762484461830,0.002,3352.9,3352.8,3.43528172]
[1762484462155,0.002,3352.9,3352.8,0.858204]
[1762484462460,0.002,3352.9,3352.8,4.29838572]
[1762484462756,0.002,3352.9,3352.8,0.4527]
[1762484463754,0.002,3352.9,3352.2,0.4576]
[1762484463952,0.002,3352.9,3352.3,0.47005568]
[1762484463953,0.1989,3352.9,3352.3,0.47005568]
[1762484464155,0.002,3352.9,3352.1,0.742]
[1762484464582,0.002,3352.9,3352.2,2.98309599]
[1762484465067,0.002,3352.9,3351.6,3.17466902]
[1762484465068,0.4819,3352.3,3351.2,0.1911]
[1762484465225,0.1988,3352.2,3351.2,0.1911]
[1762484465772,3.4547163,3352.1,3351.2,0.1911]
[1762484466074,0.4715,3352.1,3351.2,0.1911]
[1762484466227,0.4715,3352.5,3351.5,2.98365923]
[1762484466567,0.4715,3352.5,3351.6,3.58338393]
[1762484466736,0.4715,3352.5,3352.2,0.1488]
[1762484467260,4.44115693,3352.9,3351.2,0.6487]
[1762484467261,0.1989,3352.9,3351.2,0.6487]
[1762484467429,3.45438554,3352.5,3351.3,0.405504]
[1762484467628,3.45438554,3352.5,3351.4,0.47081442]
[1762484467851,0.4715,3352.4,3351.4,0.47081442]
[1762484468359,0.4715,3352.8,3351.4,0.47081442]
[1762484468565,0.4715,3352.7,3351.4,0.47081442]
[1762484468727,2.98282151,3352.6,3351.5,0.02983738]
[1762484468928,3.18139662,3352.9,3351.6,0.39421019]
[1762484469159,0.4715,3352.8,3351.8,0.405504]
[1762484469362,0.1989,3352.9,3351.8,0.405504]
[1762484469572,0.002,3352.9,3351.9,1.1996]
[1762484469867,0.002,3352.9,3351.5,0.405504]
[1762484469868,0.4715,3352.8,3351.5,0.405504]
[1762484470158,3.4541431,3352.8,3351.6,0.742]
[1762484470359,2.98273079,3352.7,3351.7,0.45889273]
[1762484470567,0.1989,3352.9,3351.5,1.147504]
[1762484470764,0.6729,3352.9,3351.6,0.4861]
[1762484470930,2.98293812,3352.4,3351.2,0.1911]
[1762484471131,2.98299834,3352.4,3351.2,0.1911]
[1762484471330,0.474,3352.4,3351.2,0.1911]
[1762484471564,3.45695368,3352.4,3351.3,0.39172827]
[1762484471769,0.474,3352.4,3351.3,0.39172827]
[1762484471953,3.45694972,3352.4,3351.3,0.39172827]
[1762484472152,2.98277426,3352.6,3351.3,0.87782827]
[1762484472351,2.98277426,3352.6,3351.4,0.51593827]
[1762484472553,0.1989,3352.9,3351.6,2.9835738]
[1762484472771,0.1989,3352.9,3351.8,0.405504]
[1762484472772,0.002,3352.9,3351.8,0.405504]
[1762484473070,0.002,3352.9,3352.8,0.4634]
[1762484473267,0.002,3352.9,3352.8,1.2054]
[1762484473441,0.002,3352.9,3352.8,0.4634]
[1762484474233,0.002,3352.9,3352.5,0.742]
[1762484474633,0.002,3352.9,3352.8,0.4634]
[1762484474861,0.002,3352.9,3352.8,0.63255]
[1762484475339,0.002,3352.9,3352.8,1.14847581]
[1762484475538,0.002,3352.9,3352.8,1.11865]
[1762484477074,0.002,3352.9,3352.8,0.91115]
[1762484477375,0.002,3352.9,3352.8,1.3542]
[1762484477966,0.002,3352.9,3352.8,1.38402581]
[1762484478193,0.002,3352.9,3352.8,1.8403]
[1762484478367,0.002,3352.9,3352.8,1.0983]
[1762484478568,0.002,3352.9,3352.8,0.6122]
[1762484478771,0.002,3352.9,3352.8,1.3542]
[1762484478981,0.002,3352.9,3352.8,0.1488]
[1762484479372,0.002,3352.9,3352.6,0.742]
[1762484479547,0.002,3352.9,3352.8,0.6122]
[1762484479881,0.002,3352.9,3352.8,0.79623]
[1762484480376,0.002,3352.9,3352.8,0.33283]
[1762484480581,0.002,3352.9,3352.8,0.1488]
[1762484480779,0.6459,3352.9,3352.8,0.1488]
[1762484481283,0.002,3352.9,3352.8,4.2534]
[1762484482258,0.002,3352.9,3352.8,4.532]
[1762484483154,0.002,3352.9,3352.8,3.79]
[1762484483364,0.002,3352.9,3352.8,4.2431]
[1762484483767,0.002,3352.9,3352.8,5.1926]
[1762484483968,0.002,3352.9,3352.8,4.2431]
[1762484484166,0.002,3352.9,3352.8,3.79]
[1762484484367,0.002,3353.3,3352.8,0.9495]
[1762484484568,0.002,3353.3,3352.8,0.4634]
[1762484484898,0.002,3353.3,3352.9,0.741]
[1762484485098,0.002,3353.3,3353.0,0.741]
[1762484485400,0.002,3353.3,3353.1,0.741]
[1762484485892,0.002,3353.3,3353.2,0.6522]
[1762484486095,0.002,3353.3,3353.2,1.57362625]
[1762484486269,0.002,3353.3,3353.2,0.80956263]
[1762484486466,0.002,3353.3,3353.2,1.90912225]
[1762484486685,0.002,3353.3,3353.2,2.31462625]
[1762484487071,0.1969,3354.8,3353.2,2.31462625]
[1762484487412,0.1924,3356.6,3354.9,0.6522]
[1762484487704,0.1924,3356.6,3353.4,3.15]
[1762484487705,5.72863192,3355.5,3353.4,3.15]
[1762484487857,5.72863192,3355.5,3353.3,0.47743383]
[1762484487858,0.474,3355.5,3353.5,0.02981959]
[1762484488056,0.474,3355.4,3353.7,0.405504]
[1762484488294,0.474,3355.7,3353.9,0.405504]
[1762484488471,0.1924,3355.9,3354.1,0.405504]
[1762484488672,0.474,3356.3,3354.3,0.405504]
[1762484488902,0.474,3356.3,3354.5,0.405504]
[1762484489080,3.4534848,3356.3,3354.7,0.405504]
[1762484489287,0.474,3356.3,3354.7,0.405504]
[1762484489489,0.474,3356.2,3354.7,0.405504]
[1762484490108,0.474,3356.2,3354.8,0.1632604]
[1762484490291,0.474,3356.2,3354.7,0.741]
[1762484490603,2.98034772,3355.4,3353.5,0.4861]
[1762484490804,2.98034556,3355.4,3353.6,0.741]
[1762484491106,0.6664,3355.3,3353.7,0.77081781]
[1762484491305,0.1924,3355.3,3353.9,0.405504]
[1762484491506,0.1924,3355.6,3354.0,0.19605732]
[1762484491669,0.1924,3355.6,3354.1,0.405504]
[1762484492002,0.1924,3355.6,3355.5,0.1488]
[1762484492512,2.98056191,3355.1,3354.0,0.16624218]
[1762484492804,5.25463192,3354.8,3353.8,0.741]
[1762484493194,0.1924,3354.7,3353.8,0.741]
[1762484493575,5.25463192,3354.2,3353.2,0.1888]
[1762484494272,5.25463192,3354.2,3354.1,0.1488]
[1762484494608,5.70613192,3354.2,3353.2,0.1888]
[1762484494810,5.70613192,3354.2,3354.1,0.1488]
[1762484494811,5.25463192,3354.2,3354.1,0.1488]
[1762484495503,0.474,3354.6,3354.1,0.1488]
[1762484495883,0.474,3354.6,3353.5,0.4861]
[1762484496083,0.474,3354.6,3353.2,0.594304]
[1762484496084,3.45498133,3354.6,3354.5,0.1488]
[1762484496622,3.90648133,3354.6,3354.5,0.1488]
[1762484496924,2.98159072,3354.0,3352.5,0.4861]
[1762484497146,2.9810702,3354.5,3352.5,0.4861]
[1762484497147,5.25463192,3353.6,3352.5,0.4861]
[1762484497319,5.25463192,3353.6,3352.3,0.1138]
[1762484497518,5.25463192,3353.6,3353.5,0.1488]
[1762484497919,6.18433192,3353.6,3353.5,0.1488]
[1762484498403,9.16620214,3353.6,3353.5,0.1488]
[1762484498919,6.18433192,3353.6,3352.3,0.1138]
[1762484499107,6.18433192,3353.6,3353.5,0.1488]
[1762484500446,9.16620214,3353.6,3353.5,0.1488]
[1762484500642,2.98203798,3353.5,3352.3,0.1138]
[1762484500945,0.4684,3353.5,3352.3,0.1138]
[1762484501109,8.69673059,3353.6,3352.3,0.1138]
[1762484501110,0.4684,3353.4,3352.3,0.1138]
[1762484503009,3.45048095,3353.4,3352.3,0.1138]
[1762484503344,5.84133192,3352.4,3351.4,0.4973]
[1762484503509,3.45047565,3353.4,3351.4,0.4973]
[1762484503510,0.4684,3352.7,3351.4,0.4973]
[1762484504141,3.45108668,3352.7,3351.4,0.4973]
[1762484504306,3.45108668,3352.7,3351.0,0.741]
[1762484504307,0.4684,3352.7,3351.0,0.741]
[1762484504542,8.23762184,3352.4,3351.2,0.35263]
[1762484504739,5.25463192,3352.4,3351.2,0.35263]
[1762484504944,0.4684,3352.3,3351.2,0.35263]
[1762484505640,0.4684,3352.3,3351.2,0.6884]
[1762484506685,0.4684,3352.3,3351.2,0.1911]
[1762484506906,5.25463192,3351.9,3350.7,0.4973]
[1762484507051,5.25463192,3351.9,3351.1,0.5539]
[1762484507250,0.1939,3351.9,3351.1,0.5539]
[1762484507448,0.1939,3352.3,3351.1,0.5539]
[1762484507643,0.1939,3353.5,3352.3,0.3745]
[1762484507879,0.1939,3353.5,3351.3,0.405504]
[1762484507880,1.259712,3353.1,3351.3,0.405504]
[1762484508094,0.4684,3353.0,3351.5,0.405504]
[1762484508261,5.25463192,3352.6,3351.4,0.68089793]
[1762484508474,5.25463192,3352.6,3351.4,0.4973]
[1762484508661,0.4684,3352.5,3351.4,0.4973]
[1762484508860,0.4684,3352.5,3351.1,0.0566]
[1762484509288,0.4684,3352.5,3351.1,0.5539]
[1762484509452,5.25463192,3352.0,3351.1,0.0566]
[1762484510604,5.25463192,3352.0,3351.9,0.1488]
[1762484511856,5.72443192,3352.0,3351.9,0.1488]
[1762484513170,5.25463192,3352.0,3351.9,0.1488]
[1762484513372,6.98274392,3352.6,3351.9,0.1488]
[1762484513776,0.1939,3352.9,3351.9,0.4973]
[1762484513996,1.453612,3352.9,3351.6,0.4973]
[1762484514201,3.64485871,3352.9,3351.6,0.4973]
[1762484514418,0.4684,3352.8,3351.3,0.405504]
[1762484514709,1.259712,3352.4,3351.1,0.0566]
[1762484514889,2.98304607,3352.3,3351.1,0.0566]
[1762484515076,0.4684,3352.3,3351.1,0.0566]
[1762484515382,5.25463192,3352.5,3351.3,0.405504]
[1762484515586,5.25463192,3352.5,3351.5,0.405504]
[1762484515971,5.25463192,3352.5,3351.6,0.4315]
[1762484516874,5.25463192,3353.1,3352.4,0.6531]
[1762484517386,5.25463192,3353.1,3352.4,1.1504]
[1762484517587,5.25463192,3353.1,3352.5,0.4973]
[1762484517880,1.376612,3354.0,3353.0,0.1941]
[1762484518079,1.376612,3354.0,3352.5,0.4973]
[1762484518080,5.72303192,3353.9,3352.5,0.4973]
[1762484518404,1.259712,3353.8,3352.5,0.4973]
[1762484518588,0.4684,3353.8,3352.5,0.4973]
[1762484518789,1.259712,3353.7,3352.5,0.4973]
[1762484519201,1.728112,3353.7,3352.5,0.4973]
[1762484519912,0.4684,3353.7,3352.5,0.4973]
[1762484520594,1.259712,3353.8,3352.5,0.4973]
[1762484521113,0.4684,3353.7,3352.5,0.4973]
[1762484521294,2.98199447,3353.5,3352.4,0.1859]
[1762484521792,0.4684,3353.4,3352.4,0.1859]
[1762484522601,2.98222593,3353.2,3350.6,0.1859]
[1762484522789,0.1105,3352.5,3351.3,0.4973]
[1762484522990,5.25463192,3352.7,3351.4,4.86649]
[1762484523492,5.25463192,3352.7,3351.5,0.4973]
[1762484523895,0.1939,3353.1,3352.6,0.1488]
[1762484524092,0.4684,3353.5,3351.7,0.405504]
[1762484524294,5.25463192,3354.3,3353.4,0.7514]
[1762484524495,0.002,3354.4,3353.5,0.6852]
[1762484524692,0.002,3354.4,3354.2,0.1488]
[1762484525294,0.002,3354.4,3354.3,0.616]
[1762484525732,0.002,3354.4,3354.3,0.64581247]
[1762484525935,0.002,3354.4,3354.3,1.14311247]
[1762484526295,0.1939,3355.9,3354.3,1.39981647]
[1762484526608,8.70296313,3355.8,3354.4,0.15857165]
[1762484526919,2.98008925,3355.7,3354.4,0.15857165]
[1762484527179,0.4684,3355.7,3354.4,0.15857165]
[1762484527441,0.4684,3355.6,3354.5,0.4973]
[1762484528134,5.25463192,3355.8,3354.5,0.4973]
[1762484528365,0.1939,3355.9,3354.6,0.43531381]
[1762484528509,0.1939,3356.3,3354.6,0.43531381]
[1762484528709,0.4684,3356.5,3354.6,0.43531381]
[1762484528710,0.1939,3356.6,3354.8,0.405504]
[1762484528908,0.4684,3357.7,3356.6,0.5869]
[1762484529107,0.1939,3357.5,3356.6,0.5869]
[1762484529343,0.4684,3357.7,3356.6,0.5869]
[1762484529650,0.4684,3357.7,3356.7,0.405504]
[1762484529944,0.4684,3357.7,3356.0,0.4973]
[1762484530159,3.00381671,3357.6,3356.1,0.1859]
[1762484530445,0.4684,3357.7,3356.2,0.405504]
[1762484530621,2.97847567,3357.5,3356.2,0.405504]
[1762484530826,0.4886,3356.3,3355.0,0.6184]
[1762484531025,0.195,3356.2,3355.1,0.15446878]
[1762484531354,0.1862,3356.3,3355.2,1.2397]
[1762484531819,0.4797,3356.7,3355.3,0.4987]
[1762484532020,0.1862,3356.5,3355.4,0.405504]
[1762484532222,0.1862,3356.5,3355.3,0.741]
[1762484532533,0.6659,3356.5,3355.3,0.15138688]
[1762484532736,3.64521317,3356.5,3355.3,0.15138688]
[1762484532919,3.45908836,3356.4,3355.1,0.405504]
[1762484533120,0.1862,3356.5,3355.1,0.405504]
[1762484533321,0.1862,3356.5,3355.2,0.4987]
[1762484533629,0.1862,3356.5,3355.1,0.405504]
[1762484533630,0.6659,3356.5,3355.1,0.405504]
[1762484533812,0.6659,3356.5,3355.0,0.14950625]
[1762484533813,2.97980872,3356.0,3355.0,0.1197]
[1762484534148,2.97971804,3356.1,3355.0,0.1197]
[1762484534454,0.1862,3355.9,3355.0,0.1197]
[1762484534681,0.4994,3355.1,3354.1,0.6846]
[1762484535256,0.4797,3355.0,3354.1,0.1859]
[1762484535457,0.4994,3355.1,3354.1,0.1859]
[1762484535658,5.25463192,3355.2,3354.1,0.1859]
[1762484536001,0.1862,3355.9,3355.1,0.0026]
[1762484536201,0.1862,3355.9,3354.5,0.405504]
[1762484536351,0.1862,3355.9,3354.6,0.4987]
[1762484536692,5.25463192,3356.3,3355.8,0.1488]
[1762484536891,5.25463192,3356.3,3354.7,1.146504]
[1762484537098,5.25463192,3356.3,3354.9,0.405504]
[1762484537387,0.1862,3356.7,3354.9,0.43531114]
[1762484537591,0.4797,3357.3,3356.2,0.5617]
[1762484537885,0.1939,3357.9,3356.3,0.405504]
[1762484538070,0.1939,3357.9,3356.4,0.6624204]
[1762484538271,0.1939,3357.9,3356.5,0.405504]
[1762484538571,4.91136955,3357.9,3356.5,1.644204]
[1762484538776,4.91136954,3357.9,3356.5,0.904204]
[1762484538960,2.97829441,3357.7,3356.5,0.904204]
[1762484539158,2.97829441,3357.7,3356.4,0.1637204]
[1762484539159,3.45788433,3357.8,3356.4,0.1637204]
[1762484539475,3.45788433,3357.8,3356.2,0.1025]
[1762484539476,2.97865088,3357.3,3356.2,0.1025]
[1762484539680,1.739412,3357.7,3356.3,0.4987]
[1762484539855,0.4797,3357.7,3356.3,0.94174104]
[1762484540051,0.4797,3357.7,3356.4,0.02979382]
[1762484540376,2.97833411,3357.6,3356.4,0.405504]
[1762484540578,2.97842472,3357.5,3356.3,0.4987]
[1762484540946,2.97842472,3357.5,3356.3,0.1746704]
[1762484540947,0.4797,3357.4,3356.3,0.1746704]
[1762484541480,0.1939,3357.9,3356.4,0.405504]
[1762484541684,0.1939,3357.9,3356.6,0.405504]
[1762484541685,1.933312,3357.9,3356.6,0.405504]
[1762484541880,0.6736,3357.9,3356.6,0.904204]
[1762484542050,0.1939,3357.9,3356.6,1.31927754]
[1762484542282,0.1862,3358.6,3357.8,0.6489]
[1762484542475,0.1862,3358.6,3356.8,0.405504]
[1762484542476,0.1862,3358.6,3356.9,0.02978938]
[1762484542709,2.97761446,3358.4,3356.9,0.4987]
[1762484542919,5.73433192,3358.5,3356.9,0.4987]
[1762484542920,2.97778718,3358.2,3356.9,0.4987]
[1762484543115,3.45748718,3358.2,3356.9,0.4987]
[1762484543321,0.4797,3358.5,3357.0,0.405504]
[1762484543615,0.1862,3358.6,3356.9,0.4987]
[1762484543616,0.4797,3358.4,3357.2,0.405504]
[1762484543817,2.97770352,3358.3,3357.2,0.405504]
[1762484544030,2.97778257,3358.3,3357.1,0.1632204]
[1762484544177,0.4797,3358.4,3357.1,0.1632204]
[1762484544534,6.1340138,3358.4,3357.1,0.1632204]